bitfinex-derivatives/quotes_SOLF0:USTF0_20250310
["timestamp","ask_amount","ask_price","bid_price","bid_amount"]
[1741570224225,0.05691908,127.3,127.28,0.05354639]
[1741570224727,0.05691908,127.3,127.28,7.91124639]
[1741570224924,0.05691908,127.3,127.28,0.05354639]
[1741570226036,0.05691908,127.3,127.24,32.36694003]
[1741570226223,31.94704291,127.29,127.24,32.36694003]
[1741570226530,7.8599,127.26,127.24,32.36694003]
[1741570226723,34.7,127.28,127.24,32.36694003]
[1741570226928,34.7,127.31,127.24,32.36694003]
[1741570227332,7.91724788,127.29,127.26,0.04953043]
[1741570227519,0.05974788,127.29,127.26,0.04953043]
[1741570227719,7.8583,127.28,127.26,0.04953043]
[1741570228127,0.05974788,127.29,127.26,0.04953043]
[1741570228327,7.8585,127.28,127.26,0.04953043]
[1741570229128,0.05974788,127.29,127.26,0.04953043]
[1741570229933,7.8585,127.28,127.26,0.04953043]
[1741570230126,0.05974788,127.29,127.26,0.04953043]
[1741570231330,2.50064788,127.29,127.26,0.04953043]
[1741570231629,2.50064788,127.29,127.26,3.043e-05]
[1741570231930,34.44769079,127.29,127.26,3.043e-05]
[1741570232130,7.8587,127.27,127.26,3.043e-05]
[1741570233239,34.7,127.27,127.19,121.30788013]
[1741570233529,31.94704291,127.26,127.19,121.30788013]
[1741570233734,7.8621,127.22,127.19,121.30788013]
[1741570234135,31.94704291,127.26,127.19,121.30788013]
[1741570234324,0.05332901,127.22,127.19,118.73633395]
[1741570234525,7.8627,127.21,127.19,118.73633395]
[1741570235030,7.8627,127.21,127.19,0.05755382]
[1741570235841,0.05332901,127.22,127.19,0.05755382]
[1741570236839,0.05332901,127.22,127.19,7.92085382]
[1741570237835,0.05332901,127.22,127.19,0.05755382]
[1741570238237,7.8627,127.21,127.19,0.05755382]
[1741570239238,0.05332901,127.22,127.19,0.05755382]
[1741570239941,7.8624,127.21,127.19,0.05755382]
[1741570240144,0.05332901,127.22,127.19,0.05755382]
[1741570240344,7.91542901,127.22,127.19,0.05755382]
[1741570241141,0.05332901,127.22,127.19,7.92095382]
[1741570241344,0.05332901,127.22,127.19,0.05755382]
[1741570241643,7.8627,127.21,127.19,0.05755382]
[1741570242433,0.05332901,127.22,127.19,0.05755382]
[1741570242634,7.8624,127.21,127.19,0.05755382]
[1741570242841,0.05332901,127.22,127.19,0.05755382]
[1741570243341,7.863,127.2,127.19,0.05755382]
[1741570243541,0.05332901,127.22,127.19,0.05755382]
[1741570244245,20.08619988,127.22,127.19,0.05755382]
[1741570244545,7.8624,127.21,127.19,0.05755382]
[1741570245838,0.05332901,127.22,127.19,0.05755382]
[1741570246044,161.07151931,127.3,127.21,20.03287087]
[1741570246346,22.65047087,127.31,127.22,37.1285]
[1741570246642,20.03287087,127.29,127.22,5.0497]
[1741570246944,20.03287087,127.27,127.22,2.4485]
[1741570247244,0.05363449,127.26,127.23,0.05832996]
[1741570247649,0.05363449,127.26,127.23,0.05685011]
[1741570247849,0.05363449,127.26,127.24,7.8601]
[1741570248251,0.05363449,127.26,127.23,0.05685011]
[1741570248455,0.05363449,127.26,127.24,7.8602]
[1741570248755,0.05363449,127.26,127.23,2.65805011]
[1741570248954,0.05363449,127.26,127.24,7.8605]
[1741570249155,0.05363449,127.26,127.23,2.65805011]
[1741570249756,0.05363449,127.26,127.23,10.51895011]
[1741570249959,0.05363449,127.26,127.23,2.65805011]
[1741570250454,7.86,127.25,127.23,0.05685011]
[1741570250753,0.05363449,127.26,127.23,0.05685011]
[1741570251352,32.06171932,127.26,127.23,0.05685011]
[1741570251555,32.06171932,127.26,127.17,5.1868]
[1741570251852,32.00808483,127.24,127.17,5.1868]
[1741570252254,32.00808483,127.24,127.17,2.5739]
[1741570252556,34.66,127.23,127.17,2.5739]
[1741570252747,32.06187139,127.22,127.19,0.05657709]
[1741570253058,32.00808483,127.2,127.13,121.25268013]
[1741570253252,32.00808483,127.2,127.14,7.8661]
[1741570253655,32.00808483,127.2,127.13,121.25268013]
[1741570253856,7.8649,127.17,127.13,121.25268013]
[1741570254258,0.05635392,127.16,127.14,0.05563238]
[1741570255557,0.05635392,127.16,127.14,7.92233238]
[1741570256059,329.20428483,127.26,127.14,0.05563238]
[1741570256256,329.20428483,127.26,127.15,32.00808483]
[1741570256257,294.0,127.26,127.15,32.00808483]
[1741570256453,7.8589,127.27,127.23,7.8608]
[1741570257055,34.66,127.29,127.21,34.66]
[1741570257258,0.04978073,127.26,127.24,0.0562256]
[1741570257652,0.04978073,127.26,127.24,7.9164256]
[1741570257850,0.04978073,127.26,127.24,0.0562256]
[1741570258053,294.06,127.32,127.24,0.0562256]
[1741570258250,294.06,127.32,127.25,34.66]
[1741570258251,259.4,127.32,127.25,34.66]
[1741570258860,7.8568,127.31,127.26,7.8589]
[1741570259160,0.05512763,127.3,127.27,0.05462451]
[1741570260959,259.36,127.38,127.27,32.06270934]
[1741570261159,2.4882,127.4,127.31,32.00808483]
[1741570261357,10.8712853,127.41,127.33,32.00808483]
[1741570261656,10.8712853,127.41,127.34,2.5589]
[1741570261856,7.8507,127.4,127.35,7.8533]
[1741570262063,0.05487194,127.39,127.36,34.69142617]
[1741570262854,119.58413839,127.42,127.38,32.00808483]
[1741570263155,259.34,127.5,127.4,32.00808483]
[1741570263352,7.8459,127.48,127.41,34.64]
[1741570263555,7.8459,127.48,127.34,453.8989]
[1741570263556,34.64,127.47,127.37,34.64]
[1741570263755,32.00808483,127.45,127.37,34.64]
[1741570263962,0.04964017,127.43,127.41,0.05278867]
[1741570264265,0.04964017,127.43,127.37,34.64]
[1741570265259,0.04964017,127.43,127.39,0.05866889]
[1741570265455,7.8509,127.4,127.39,0.05866889]
[1741570265863,7.89864017,127.43,127.39,0.05866889]
[1741570266066,0.04964017,127.43,127.39,0.05866889]
[1741570266566,8.7813,127.48,127.4,32.00808483]
[1741570266768,2.4882,127.51,127.41,34.62]
[1741570266960,2.4882,127.51,127.42,32.00808483]
[1741570267355,5.1768,127.53,127.46,7.8469]
[1741570267561,7.8422,127.54,127.48,32.00808483]
[1741570267759,0.05774937,127.51,127.48,32.06719094]
[1741570267968,5.1768,127.59,127.51,7.8438]
[1741570268170,5.1768,127.59,127.52,34.6]
[1741570268869,2.6115,127.59,127.52,34.6]
[1741570269168,0.05742049,127.57,127.54,0.05790315]
[1741570269369,7.8413,127.56,127.54,0.05790315]
[1741570269665,0.05742049,127.57,127.54,0.05790315]
[1741570270068,66.60808483,127.56,127.46,34.6]
[1741570270267,37.0209,127.56,127.46,66.60808483]
[1741570270470,32.00808483,127.58,127.46,66.60808483]
[1741570270769,32.00808483,127.56,127.46,34.6]
[1741570270973,32.00808483,127.54,127.46,34.6]
[1741570271271,32.00808483,127.5,127.41,7.8499]
[1741570271463,0.05463426,127.52,127.39,1.9324]
[1741570271464,34.58,127.51,127.42,34.58]
[1741570271670,32.00808483,127.5,127.42,34.58]
[1741570271866,2.6149,127.53,127.42,34.58]
[1741570272066,32.00808483,127.52,127.42,34.58]
[1741570272366,7.8468,127.47,127.42,42.4293]
[1741570272567,0.05246146,127.48,127.46,0.05643641]
[1741570272764,0.05246146,127.48,127.42,66.58808483]
[1741570272966,0.05246146,127.48,127.47,7.8463]
[1741570273263,0.05246146,127.48,127.47,34.58]
[1741570273771,0.05246146,127.48,127.47,42.4263]
[1741570274165,0.05246146,127.48,127.47,34.58]
[1741570274568,0.05246146,127.48,127.47,42.4263]
[1741570274767,0.05246146,127.48,127.47,34.58]
[1741570275171,0.05246146,127.48,127.46,0.04991646]
[1741570275766,7.8463,127.47,127.46,0.04991646]
[1741570276361,0.05246146,127.48,127.46,0.04991646]
[1741570276566,7.89846146,127.48,127.46,0.04991646]
[1741570276766,0.05246146,127.48,127.46,0.04991646]
[1741570277168,7.8463,127.47,127.46,0.04991646]
[1741570277612,51.881473,127.48,127.4,34.56]
[1741570277776,7.8488,127.44,127.4,42.4106]
[1741570278169,51.82901154,127.48,127.4,34.56]
[1741570278374,7.8481,127.45,127.41,7.8498]
[1741570278667,0.05372922,127.44,127.42,0.05927637]
[1741570278865,5.10112922,127.44,127.36,34.56]
[1741570279063,5.0474,127.44,127.36,34.56]
[1741570280074,0.06042807,127.41,127.39,0.05407452]
[1741570280474,0.06042807,127.41,127.4,7.8507]
[1741570281176,0.06042807,127.41,127.39,0.05407452]
[1741570281873,0.06042807,127.41,127.34,34.54]
[1741570282169,7.8532,127.36,127.32,7.8551]
[1741570282369,2.4997,127.4,127.31,34.54]
[1741570282769,7.8536,127.36,127.32,7.8553]
[1741570282969,86.36901154,127.38,127.31,34.54]
[1741570283165,2.4849,127.39,127.31,34.54]
[1741570283166,0.05764862,127.37,127.34,0.06039056]
[1741570283370,0.05764862,127.37,127.34,7.91449056]
[1741570283570,0.05764862,127.37,127.34,0.06039056]
[1741570284270,2.4386,127.44,127.35,34.54]
[1741570285069,2.4386,127.44,127.41,7.8497]
[1741570285470,2.49545135,127.44,127.41,7.8497]
[1741570285675,2.49545135,127.44,127.41,0.05097493]
[1741570286085,7.8494,127.43,127.41,0.05097493]
[1741570286276,2.49545135,127.44,127.41,0.05097493]
[1741570286671,10.34415135,127.44,127.41,0.05097493]
[1741570286872,2.49545135,127.44,127.41,0.05097493]
[1741570287167,7.8492,127.43,127.41,0.05097493]
[1741570287367,2.49545135,127.44,127.41,0.05097493]
[1741570288781,7.8494,127.42,127.41,0.05097493]
[1741570289083,7.8494,127.42,127.36,7.8525]
[1741570289084,2.49545135,127.44,127.35,34.54]
[1741570289380,86.36901154,127.42,127.31,34.54]
[1741570289983,7.8538,127.35,127.32,7.8554]
[1741570290279,7.8538,127.35,127.32,7.91070731]
[1741570290475,0.06016761,127.35,127.32,0.05530731]
[1741570291083,7.8549,127.34,127.32,0.05530731]
[1741570291379,0.06016761,127.35,127.32,0.05530731]
[1741570291579,34.54,127.34,127.26,118.67878013]
[1741570291981,7.857,127.3,127.26,126.53788013]
[1741570292278,34.54,127.34,127.26,118.67878013]
[1741570292483,34.54,127.34,127.25,34.54]
[1741570292484,7.8581,127.28,127.25,32.36694003]
[1741570292880,0.05831001,127.31,127.29,0.06026036]
[1741570293077,7.8568,127.3,127.25,32.36694003]
[1741570293280,7.8568,127.3,127.29,0.05223203]
[1741570293478,7.8568,127.3,127.25,32.36694003]
[1741570293479,0.0505949,127.31,127.28,7.8579]
[1741570293685,0.0505949,127.31,127.25,32.36694003]
[1741570293887,0.0505949,127.31,127.28,0.05469115]
[1741570294883,7.8574,127.29,127.28,0.05469115]
[1741570295085,7.8574,127.29,127.25,32.36694003]
[1741570295280,34.54,127.3,127.25,32.36694003]
[1741570295783,7.8581,127.28,127.25,32.36694003]
[1741570295986,34.54,127.3,127.22,34.54]
[1741570296278,0.05185128,127.27,127.25,0.05633422]
[1741570296981,0.05185128,127.27,127.25,7.91583422]
[1741570297182,0.05185128,127.27,127.21,32.36694003]
[1741570297681,51.82901154,127.26,127.21,32.36694003]
[1741570297885,89.02741154,127.26,127.21,32.36694003]
[1741570298280,37.1984,127.26,127.22,0.05336116]
[1741570298484,45.0578,127.26,127.22,7.91476116]
[1741570298793,37.1984,127.26,127.22,0.05336116]
[1741570299084,0.05185128,127.27,127.25,7.8598]
[1741570299283,0.05185128,127.27,127.22,34.59336116]
[1741570299483,0.05185128,127.27,127.25,0.05130138]
[1741570299687,0.05185128,127.27,127.25,7.91080138]
[1741570299988,0.05185128,127.27,127.25,0.05130138]
[1741570300182,0.05185128,127.27,127.26,7.8593]
[1741570300383,0.05185128,127.27,127.25,0.05130138]
[1741570300885,0.05185128,127.27,127.26,7.8593]
[1741570301087,0.05185128,127.27,127.26,42.3993]
[1741570301288,158.71581931,127.36,127.3,7.8567]
[1741570301289,34.54,127.36,127.3,7.8567]
[1741570301482,2.6185,127.35,127.3,7.8567]
[1741570301681,7.8548,127.34,127.3,7.8567]
[1741570302187,51.82901154,127.34,127.23,34.54]
[1741570302488,37.172,127.32,127.23,34.54]
[1741570302684,7.8586,127.28,127.27,0.05943991]
[1741570303184,0.05854259,127.29,127.27,0.05943991]
[1741570303794,7.8581,127.28,127.27,0.05943991]
[1741570304691,7.91624259,127.29,127.27,0.05943991]
[1741570304890,0.05854259,127.29,127.27,0.05943991]
[1741570305389,7.8581,127.28,127.27,0.05943991]
[1741570307282,7.8612,127.23,127.2,34.54]
[1741570307484,36.974,127.28,127.2,34.54]
[1741570307884,7.8611,127.24,127.2,42.4026]
[1741570308289,36.974,127.28,127.2,42.4026]
[1741570308290,36.974,127.28,127.2,34.54]
[1741570308493,7.92060632,127.23,127.21,0.06019689]
[1741570308694,7.8615,127.23,127.21,0.06019689]
[1741570308993,7.91326699,127.23,127.21,0.06019689]
[1741570309393,0.05176699,127.23,127.21,0.06019689]
[1741570309989,0.05176699,127.23,127.21,7.92209689]
[1741570311194,0.05176699,127.23,127.22,7.8618]
[1741570311792,34.54,127.31,127.25,7.8598]
[1741570311998,34.54,127.31,127.2,66.55134031]
[1741570312188,37.00834031,127.32,127.2,66.55134031]
[1741570312397,4.997,127.32,127.23,32.01134031]
[1741570312698,7.8565,127.31,127.24,34.54]
[1741570312899,0.05227961,127.29,127.28,7.858]
[1741570313094,158.71581931,127.4,127.28,34.54]
[1741570313396,7.8526,127.37,127.29,32.01134031]
[1741570313591,39.5682,127.39,127.28,34.54]
[1741570313794,7.852,127.38,127.31,32.01134031]
[1741570313989,39.5682,127.39,127.31,32.01134031]
[1741570313990,39.5682,127.39,127.32,34.54]
[1741570314191,0.05865139,127.36,127.33,0.05954498]
[1741570314798,7.8538,127.35,127.33,0.05954498]
[1741570315001,0.05865139,127.36,127.33,0.05954498]
[1741570315497,7.8544,127.34,127.33,0.05954498]
[1741570315893,7.8544,127.34,127.26,32.01134031]
[1741570315894,7.8544,127.34,127.28,34.54]
[1741570316091,34.54,127.35,127.25,34.52]
[1741570316295,2.5091,127.34,127.25,34.52]
[1741570316495,2.5091,127.34,127.29,7.8574]
[1741570316795,32.01134031,127.38,127.3,34.52]
[1741570316990,34.52044031,127.38,127.3,34.52]
[1741570317193,0.05516359,127.35,127.33,0.05799557]
[1741570317599,0.05516359,127.35,127.34,42.3739]
[1741570317893,2.6763,127.42,127.34,66.53134031]
[1741570318095,32.01134031,127.5,127.34,66.53134031]
[1741570318096,2.4475,127.46,127.34,66.53134031]
[1741570318393,7.8501,127.41,127.35,3.6522]
[1741570318801,7.8494,127.43,127.35,3.6522]
[1741570318994,2.4475,127.46,127.37,0.05743499]
[1741570319195,2.4475,127.46,127.4,7.8504]
[1741570319397,2.4475,127.46,127.38,34.52]
[1741570319700,2.6763,127.48,127.38,34.52]
[1741570319994,66.53134031,127.5,127.4,32.01134031]
[1741570320203,66.53134031,127.5,127.44,7.8481]
[1741570320498,7.8446,127.5,127.45,34.5]
[1741570320898,0.05723806,127.48,127.46,0.05307274]
[1741570322003,7.90343806,127.48,127.46,0.05307274]
[1741570322199,0.05723806,127.48,127.46,0.05307274]
[1741570324206,7.8463,127.47,127.46,0.05307274]
[1741570324601,51.90694315,127.48,127.38,503.02970509]
[1741570324800,4.9928,127.47,127.39,34.48]
[1741570325104,2.5675,127.47,127.42,7.849]
[1741570325306,7.8467,127.47,127.42,7.849]
[1741570325501,2.4253,127.5,127.39,34.48]
[1741570325702,7.8474,127.46,127.39,34.48]
[1741570325904,7.90464931,127.46,127.43,0.05631389]
[1741570326209,0.05724931,127.46,127.44,34.48]
[1741570326705,7.8433,127.52,127.44,34.48]
[1741570327211,2.6287,127.57,127.46,51.84970509]
[1741570327507,2.6287,127.57,127.45,2.2652]
[1741570327704,88.90150509,127.6,127.48,51.84970509]
[1741570328006,0.05078952,127.52,127.5,0.05874296]
[1741570328207,91.53020509,127.6,127.46,258.94]
[1741570328505,0.05356774,127.52,127.5,0.05734145]
[1741570328900,51.84970509,127.57,127.49,34.46]
[1741570329107,0.05839608,127.52,127.5,0.06007029]
[1741570329504,51.84970509,127.54,127.5,0.06007029]
[1741570329701,0.05184141,127.52,127.5,0.06007029]
[1741570329900,51.9015465,127.52,127.44,34.46]
[1741570330104,34.46,127.51,127.44,34.46]
[1741570330299,34.46,127.51,127.47,0.05958502]
[1741570330501,7.8457,127.48,127.47,0.05958502]
[1741570330897,51.90427698,127.49,127.44,34.46]
[1741570331302,51.90427698,127.49,127.41,34.44]
[1741570331611,7.8472,127.46,127.42,7.8494]
[1741570331813,7.8472,127.46,127.41,34.44]
[1741570332006,51.84970509,127.49,127.41,34.44]
[1741570332310,0.05456924,127.45,127.42,0.05389087]
[1741570334006,7.90236924,127.45,127.42,0.05389087]
[1741570334208,0.05456924,127.45,127.43,51.84970509]
[1741570334515,503.8855244,127.59,127.44,51.84970509]
[1741570334703,2.4859,127.58,127.47,51.84970509]
[1741570334907,2.4859,127.58,127.5,51.84970509]
[1741570335108,7.8395,127.59,127.51,34.44]
[1741570335311,86.28970509,127.62,127.51,35.7497]
[1741570335515,7.89139467,127.56,127.54,0.05329839]
[1741570335709,0.05019467,127.56,127.54,0.05329839]
[1741570335906,51.84970509,127.59,127.51,34.44]
[1741570336110,7.8419,127.55,127.54,0.05026172]
[1741570336507,7.8414,127.55,127.54,0.05026172]
[1741570336907,0.05608646,127.56,127.48,34.44]
[1741570337202,51.84970509,127.56,127.48,34.44]
[1741570337409,4.8976,127.55,127.48,34.44]
[1741570338207,0.05236733,127.53,127.5,0.05186972]
[1741570338403,6.733e-05,127.53,127.5,51.90157481]
[1741570338809,6.733e-05,127.53,127.52,7.8433]
[1741570339006,6.733e-05,127.53,127.52,42.2633]
[1741570339304,6.733e-05,127.53,127.52,34.42]
[1741570339907,7.84316733,127.53,127.5,0.05186972]
[1741570340107,6.733e-05,127.53,127.5,0.05186972]
[1741570340508,7.8439,127.51,127.5,0.05186972]
[1741570340909,7.8461,127.48,127.46,34.42]
[1741570341106,7.8461,127.48,127.43,34.42]
[1741570341311,2.4634,127.52,127.43,34.42]
[1741570341508,34.42,127.51,127.43,34.42]
[1741570341704,51.84970509,127.5,127.43,34.42]
[1741570342110,0.05380373,127.48,127.45,0.05240205]
[1741570342416,86.26970509,127.47,127.39,32.36694003]
[1741570342716,36.7014,127.47,127.41,7.8497]
[1741570342905,36.7014,127.47,127.39,32.36694003]
[1741570343416,51.84970509,127.46,127.39,32.36694003]
[1741570343613,0.0585692,127.44,127.42,0.05350726]
[1741570343812,0.0585692,127.44,127.39,32.36694003]
[1741570344015,7.8503,127.41,127.35,34.42]
[1741570344316,34.42,127.43,127.35,34.42]
[1741570345012,34.42,127.43,127.38,7.8518]
[1741570345316,0.05727783,127.4,127.38,7.90931016]
[1741570345510,0.05727783,127.4,127.38,0.05751016]
[1741570345707,7.8513,127.39,127.38,0.05751016]
[1741570345907,0.05727783,127.4,127.35,51.84970509]
[1741570346112,0.05727783,127.4,127.39,7.8513]
[1741570346313,2.161,127.46,127.38,51.84970509]
[1741570347019,0.05752066,127.43,127.41,0.05422507]
[1741570347220,34.42,127.49,127.41,86.32393016]
[1741570347420,34.42,127.52,127.41,86.32393016]
[1741570347615,51.84970509,127.5,127.41,34.42]
[1741570348318,51.84970509,127.5,127.38,51.84970509]
[1741570348519,51.84970509,127.5,127.37,34.8436]
[1741570348520,51.90702508,127.47,127.44,0.0505479]
[1741570348819,38.8886,127.46,127.37,7.8521]
[1741570349020,38.8886,127.46,127.32,502.70970509]
[1741570349021,51.84970509,127.44,127.32,51.84970509]
[1741570349213,51.84970509,127.44,127.32,86.26970509]
[1741570349413,51.84970509,127.44,127.36,32.36694003]
[1741570349611,51.84970509,127.41,127.36,32.36694003]
[1741570349813,7.8525,127.37,127.36,32.36694003]
[1741570350120,36.6874,127.4,127.36,32.36694003]
[1741570350316,7.8525,127.37,127.36,21.67284003]
[1741570350519,51.89976623,127.38,127.35,9.927e-05]
[1741570350715,51.89976623,127.38,127.34,129.46776015]
[1741570351020,7.8537,127.35,127.34,129.46776015]
[1741570351519,7.8537,127.35,127.34,104.87576015]
[1741570351915,34.44,127.36,127.34,104.87576015]
[1741570352111,0.05006114,127.38,127.34,104.87576015]
[1741570352309,0.05006114,127.38,127.33,0.0558831]
[1741570352522,51.89976623,127.38,127.33,0.0558831]
[1741570353224,0.05006114,127.38,127.33,0.0558831]
[1741570354221,0.05006114,127.38,127.34,34.42]
[1741570354419,0.05006114,127.38,127.35,2.3375]
[1741570355018,0.05006114,127.38,127.34,2.3579]
[1741570355219,0.05006114,127.38,127.33,0.0558831]
[1741570356019,7.90246114,127.38,127.34,7.8538]
[1741570356322,0.05006114,127.38,127.33,0.0558831]
[1741570356926,7.8544,127.34,127.33,0.0558831]
[1741570357227,86.28970509,127.39,127.33,0.0558831]
[1741570357525,0.05295317,127.35,127.33,0.0558831]
[1741570358720,7.8544,127.34,127.33,0.0558831]
[1741570359821,34.49295317,127.35,127.33,0.0558831]
[1741570360526,7.8544,127.34,127.33,8.31e-05]
[1741570361328,0.05295317,127.35,127.33,8.31e-05]
[1741570362324,7.90715317,127.35,127.33,8.31e-05]
[1741570362828,0.05295317,127.35,127.33,8.31e-05]
[1741570363931,7.8544,127.34,127.33,8.31e-05]
[1741570366329,0.05295317,127.35,127.33,8.31e-05]
[1741570368629,36.7985,127.42,127.33,8.31e-05]
[1741570368830,36.7985,127.42,127.32,2.3544]
[1741570369130,51.84970509,127.41,127.32,2.3544]
[1741570369437,7.8543,127.35,127.32,2.3544]
[1741570369639,34.42,127.38,127.32,2.3544]
[1741570369829,0.05396704,127.35,127.32,0.05303627]
[1741570370436,7.855,127.33,127.32,0.05303627]
[1741570371337,7.855,127.33,127.32,3.627e-05]
[1741570372042,34.42,127.34,127.32,3.627e-05]
[1741570372633,7.855,127.33,127.32,3.627e-05]
[1741570373128,0.05396704,127.35,127.32,3.627e-05]
[1741570373635,7.855,127.33,127.32,3.627e-05]
[1741570374137,7.90776704,127.35,127.32,3.627e-05]
[1741570374338,0.05396704,127.35,127.32,3.627e-05]
[1741570376238,7.8545,127.34,127.32,3.627e-05]
[1741570376441,0.05396704,127.35,127.32,3.627e-05]
[1741570378135,2.3585,127.42,127.32,3.627e-05]
[1741570378336,36.7785,127.42,127.31,34.42]
[1741570378735,2.3585,127.42,127.31,34.42]
[1741570378936,7.851,127.4,127.31,34.42]
[1741570379141,36.7785,127.42,127.34,7.854]
[1741570379344,0.05859463,127.37,127.34,0.05400331]
[1741570379544,0.05859463,127.37,127.31,34.42]
[1741570379742,0.05859463,127.37,127.34,0.05333281]
[1741570380242,0.05859463,127.37,127.34,7.90753281]
[1741570380440,0.05859463,127.37,127.34,0.05333281]
[1741570381140,7.8537,127.35,127.34,0.05333281]
[1741570381644,7.8537,127.35,127.28,2.3544]
[1741570381645,51.84970509,127.35,127.28,2.3544]
[1741570381944,34.42,127.34,127.28,2.3544]
[1741570382144,34.42,127.34,127.27,4.6534]
[1741570382845,7.8567,127.31,127.27,4.6534]
[1741570383044,0.05394716,127.32,127.27,4.6534]
[1741570384045,7.90994716,127.32,127.27,4.6534]
[1741570384250,0.05394716,127.32,127.27,4.6534]
[1741570384949,0.05394716,127.32,127.31,7.8562]
[1741570385946,34.42,127.39,127.3,34.42]
[1741570386147,34.42,127.39,127.31,2.2008]
[1741570387147,13.14092403,127.42,127.34,0.05461766]
[1741570387148,1.062e-05,127.36,127.34,0.05461766]
[1741570387346,10.87402403,127.42,127.35,34.42]
[1741570387651,7.8517,127.39,127.35,34.42]
[1741570387949,34.42,127.4,127.32,34.42]
[1741570388345,0.05122323,127.37,127.35,0.05120007]
[1741570389941,7.8531,127.36,127.35,7e-08]
[1741570390649,59.70280509,127.36,127.35,7e-08]
[1741570390947,58.06120509,127.36,127.29,32.58412532]
[1741570391148,34.42,127.35,127.29,32.58412532]
[1741570391448,7.8568,127.3,127.29,32.58412532]
[1741570391650,34.42,127.35,127.29,32.58412532]
[1741570392051,7.8557,127.32,127.31,0.05009923]
[1741570392252,0.05057632,127.33,127.31,0.05009923]
[1741570392652,71.54430692,127.41,127.31,0.05009923]
[1741570392944,34.42,127.4,127.31,51.84970509]
[1741570393549,34.42,127.4,127.36,7.8531]
[1741570393749,0.05205157,127.37,127.34,34.47215424]
[1741570394050,67.2798176,127.42,127.35,2.1898]
[1741570394250,86.99219231,127.43,127.4,51.84970509]
[1741570394251,45.68510992,127.43,127.4,51.84970509]
[1741570394448,11.38850992,127.43,127.41,34.4]
[1741570394748,92.43309838,127.44,127.41,34.4]
[1741570394950,32.70009395,127.47,127.43,51.84970509]
[1741570395148,2.23e-06,127.44,127.43,59.69850509]
[1741570395353,32.70009395,127.47,127.43,55.76970509]
[1741570395550,32.70009395,127.47,127.43,51.84970509]
[1741570396248,32.70009395,127.47,127.41,34.4]
[1741570396449,0.06043438,127.46,127.44,0.05873067]
[1741570397451,0.06043438,127.46,127.45,42.2476]
[1741570397645,15.37542833,127.47,127.45,34.4]
[1741570397850,68.11582671,127.48,127.45,38.32]
[1741570398146,7.8414,127.56,127.49,7.8446]
[1741570398343,38.8667,127.58,127.5,34.4]
[1741570398949,38.8667,127.58,127.51,0.05030447]
[1741570398950,0.06043312,127.54,127.51,0.05030447]
[1741570399758,0.06043312,127.54,127.51,7.89370447]
[1741570400155,7.90263312,127.54,127.51,0.05030447]
[1741570400456,0.06043312,127.54,127.51,0.05030447]
[1741570401261,7.90303312,127.54,127.51,0.05030447]
[1741570401557,0.06043312,127.54,127.51,0.05030447]
[1741570404059,0.06043312,127.54,127.51,34.43030447]
[1741570404866,3.312e-05,127.54,127.52,51.84970509]
[1741570405262,2.1335,127.65,127.52,247.76970509]
[1741570405463,2.124,127.66,127.57,51.84970509]
[1741570405656,2.124,127.66,127.58,34.38]
[1741570406459,0.05921147,127.63,127.61,0.0515721]
[1741570406660,0.05921147,127.63,127.55,34.36]
[1741570406862,7.8385,127.6,127.55,42.2009]
[1741570407060,2.124,127.66,127.55,34.36]
[1741570407365,7.8388,127.6,127.55,42.2012]
[1741570407664,51.84970509,127.64,127.55,34.36]
[1741570407862,0.04994246,127.59,127.56,0.05109995]
[1741570409363,0.04994246,127.59,127.58,7.8396]
[1741570409860,0.00584246,127.59,127.58,7.8396]
[1741570410359,2.2051,127.67,127.58,55.76970509]
[1741570410565,2.2051,127.67,127.59,34.36]
[1741570411262,2.1214,127.7,127.61,51.84970509]
[1741570411464,0.05344951,127.64,127.62,0.04978333]
[1741570411757,88.33110509,127.7,127.59,34.36]
[1741570411962,0.05876027,127.64,127.62,0.05359273]
[1741570412158,0.05876027,127.64,127.56,34.36]
[1741570412354,2.3046,127.64,127.56,34.36]
[1741570412557,7.8388,127.6,127.56,34.34]
[1741570412756,54.15430509,127.64,127.56,34.34]
[1741570413360,0.05163453,127.61,127.59,0.05535029]
[1741570413560,7.8384,127.6,127.59,0.05535029]
[1741570414263,0.05163453,127.61,127.55,57.35693271]